[Event "*** Titled Tuesday Blitz"]
[Site "Chess.com"]
[Date "2020.05.05"]
[Round "8"]
[White "Blitzking642"]
[Black "CMS13"]
[Result "0-1"]
[WhiteElo "2294"]
[BlackElo "2194"]
[TimeControl "180+1"]
[EndTime "11:30:55 PDT"]
[Termination "CMS13 won by resignation"]

1. e4 {[%clk 0:03:00.9]} 1... e5 {[%clk 0:02:59.1]} 2. Nf3 {[%clk 0:03:00.1]}
2... Nc6 {[%clk 0:02:59.4]} 3. d4 {[%clk 0:03:00.4]} 3... exd4 {[%clk
0:02:59.4]} 4. Nxd4 {[%clk 0:03:01.2]} 4... Bc5 {[%clk 0:02:59.6]} 5. Nb3 {[%clk
0:02:59.1]} 5... Bb6 {[%clk 0:02:59.5]} 6. Nc3 {[%clk 0:02:58.8]} 6... d6 {[%clk
0:02:58]} 7. Qe2 {[%clk 0:02:58.8]} 7... Nf6 {[%clk 0:02:55.7]} 8. Bg5 {[%clk
0:02:58.5]} 8... h6 {[%clk 0:02:54.4]} 9. Be3 {[%clk 0:02:58.4]} 9... O-O {[%clk
0:02:53.6]} 10. O-O-O {[%clk 0:02:56.7]} 10... Re8 {[%clk 0:02:49.4]} 11. f3
{[%clk 0:02:45]} 11... Be6 {[%clk 0:02:36.9]} 12. Bxb6 {[%clk 0:02:22.7]} 12...
axb6 {[%clk 0:02:36.6]} 13. Kb1 {[%clk 0:02:21.5]} 13... Bxb3 {[%clk 0:02:13.9]}
14. axb3 {[%clk 0:02:19.7]} 14... Nb4 {[%clk 0:02:13.3]} 15. Qc4 {[%clk
0:02:10.5]} 15... Nc6 {[%clk 0:02:12.6]} 16. g4 {[%clk 0:01:59.9]} 16... Ne5
{[%clk 0:02:11.2]} 17. Be2 {[%clk 0:01:56.6]} 17... Nxc4 {[%clk 0:02:10.6]} 0-1

[Event "*** Titled Tuesday Blitz"]
[Site "Chess.com"]
[Date "2020.05.05"]
[Round "8"]
[White "chiwii"]
[Black "leopato"]
[Result "0-1"]
[WhiteElo "2239"]
[BlackElo "2092"]
[TimeControl "180+1"]
[EndTime "11:30:55 PDT"]
[Termination "leopato won by resignation"]

1. e4 {[%clk 0:03:00.9]} 1... c5 {[%clk 0:02:53.7]} 2. Nf3 {[%clk 0:02:59.7]}
2... d6 {[%clk 0:02:52.6]} 3. d4 {[%clk 0:02:59.4]} 3... cxd4 {[%clk 0:02:53.5]}
4. Nxd4 {[%clk 0:02:59.4]} 4... Nf6 {[%clk 0:02:53.8]} 5. Be2 {[%clk 0:02:56.2]}
5... Nxe4 {[%clk 0:02:49]} 6. O-O {[%clk 0:02:48.4]} 6... e6 {[%clk 0:02:44.9]}
7. Nc3 {[%clk 0:02:48.2]} 7... Nxc3 {[%clk 0:02:44.3]} 8. bxc3 {[%clk
0:02:49.1]} 8... Be7 {[%clk 0:02:43.2]} 9. Bf3 {[%clk 0:02:46.1]} 9... O-O
{[%clk 0:02:41.9]} 10. Rb1 {[%clk 0:02:43.9]} 10... d5 {[%clk 0:02:41.2]} 11.
Bf4 {[%clk 0:02:39.1]} 11... Nc6 {[%clk 0:02:39]} 12. Nb5 {[%clk 0:02:36.3]}
12... e5 {[%clk 0:02:36.7]} 13. Bg3 {[%clk 0:02:34.2]} 13... Be6 {[%clk
0:02:34.1]} 14. Re1 {[%clk 0:02:32.6]} 14... a6 {[%clk 0:02:33.2]} 15. Bxe5
{[%clk 0:02:25.6]} 15... axb5 {[%clk 0:02:29.4]} 16. Rxb5 {[%clk 0:02:23.1]}
16... Rxa2 {[%clk 0:02:26]} 17. Rxb7 {[%clk 0:02:22.4]} 17... Nxe5 {[%clk
0:02:24.4]} 18. Rxe5 {[%clk 0:02:23.3]} 18... Bf6 {[%clk 0:02:22.3]} 19. Re3
{[%clk 0:02:19.7]} 19... Qc8 {[%clk 0:02:18.7]} 20. Rb3 {[%clk 0:02:09.3]} 20...
d4 {[%clk 0:02:18.1]} 21. cxd4 {[%clk 0:02:08.2]} 21... Bxb3 {[%clk 0:02:17.2]}
0-1

[Event "*** Titled Tuesday Blitz"]
[Site "Chess.com"]
[Date "2020.05.05"]
[Round "8"]
[White "ShahMatKanal"]
[Black "Quiet_Desperation"]
[Result "1-0"]
[WhiteElo "2406"]
[BlackElo "2226"]
[TimeControl "180+1"]
[EndTime "11:31:05 PDT"]
[Termination "ShahMatKanal won by resignation"]

1. Nf3 {[%clk 0:03:00.9]} 1... Nf6 {[%clk 0:02:59.9]} 2. c4 {[%clk 0:03:00.3]}
2... e6 {[%clk 0:02:58.2]} 3. Nc3 {[%clk 0:03:00.2]} 3... b6 {[%clk 0:02:56.8]}
4. e4 {[%clk 0:02:58.8]} 4... Bb7 {[%clk 0:02:55]} 5. Qc2 {[%clk 0:02:50.5]}
5... d6 {[%clk 0:02:47.8]} 6. d4 {[%clk 0:02:43.3]} 6... Be7 {[%clk 0:02:47.1]}
7. Bd3 {[%clk 0:02:36.4]} 7... O-O {[%clk 0:02:46.8]} 8. O-O {[%clk 0:02:36.4]}
8... Nbd7 {[%clk 0:02:36.3]} 9. e5 {[%clk 0:02:21.7]} 9... dxe5 {[%clk
0:02:35.9]} 10. dxe5 {[%clk 0:02:22.6]} 10... Ng4 {[%clk 0:02:36]} 11. Bxh7+
{[%clk 0:02:21.4]} 11... Kh8 {[%clk 0:02:36]} 12. Be4 {[%clk 0:02:22.3]} 12...
Qc8 {[%clk 0:02:30.2]} 13. Bf4 {[%clk 0:02:13.1]} 13... f5 {[%clk 0:02:20.7]}
14. exf6 {[%clk 0:02:04.5]} 14... Ngxf6 {[%clk 0:02:18.5]} 15. Bxb7 {[%clk
0:01:59.6]} 15... Qxb7 {[%clk 0:02:18.5]} 16. Ng5 {[%clk 0:01:59.9]} 16... e5
{[%clk 0:02:18.1]} 17. Nd5 {[%clk 0:01:52.9]} 17... exf4 {[%clk 0:02:14.4]} 18.
Nxe7 {[%clk 0:01:51.2]} 1-0

[Event "*** Titled Tuesday Blitz"]
[Site "Chess.com"]
[Date "2020.05.05"]
[Round "8"]
[White "Saloni1299"]
[Black "vovachesss"]
[Result "0-1"]
[WhiteElo "2335"]
[BlackElo "2555"]
[TimeControl "180+1"]
[EndTime "11:31:10 PDT"]
[Termination "vovachesss won by resignation"]

1. e4 {[%clk 0:03:00.9]} 1... e5 {[%clk 0:02:59]} 2. Nf3 {[%clk 0:02:58.7]} 2...
d5 {[%clk 0:02:59.3]} 3. exd5 {[%clk 0:02:54]} 3... e4 {[%clk 0:02:59.5]} 4. Ng1
{[%clk 0:02:44.7]} 4... Qxd5 {[%clk 0:02:58.9]} 5. Nc3 {[%clk 0:02:45]} 5... Qe5
{[%clk 0:02:59.2]} 6. Bc4 {[%clk 0:02:39.3]} 6... Bc5 {[%clk 0:02:55.4]} 7. Qe2
{[%clk 0:02:39]} 7... Nf6 {[%clk 0:02:52.8]} 8. Nf3 {[%clk 0:02:38.8]} 8... Qe7
{[%clk 0:02:44.8]} 9. Ng5 {[%clk 0:02:38.8]} 9... Bf5 {[%clk 0:02:39.4]} 10.
Bxf7+ {[%clk 0:02:33.4]} 10... Kf8 {[%clk 0:02:33.3]} 11. Bb3 {[%clk 0:02:27.6]}
11... Nc6 {[%clk 0:02:32.8]} 12. O-O {[%clk 0:02:20.1]} 12... Nd4 {[%clk
0:02:32.5]} 13. Qc4 {[%clk 0:02:16.2]} 13... h6 {[%clk 0:02:29.5]} 14. Nf7
{[%clk 0:01:57.5]} 14... Rh7 {[%clk 0:02:25.8]} 15. d3 {[%clk 0:01:49.9]} 15...
Be6 {[%clk 0:02:20.4]} 16. Qb5 {[%clk 0:01:43.3]} 16... Nxb5 {[%clk 0:02:19.9]}
17. Nxb5 {[%clk 0:01:41.8]} 17... Bxb3 {[%clk 0:02:18.3]} 0-1

[Event "*** Titled Tuesday Blitz"]
[Site "Chess.com"]
[Date "2020.05.05"]
[Round "8"]
[White "CalinGheorghiu"]
[Black "Bagirova"]
[Result "1-0"]
[WhiteElo "2376"]
[BlackElo "2188"]
[TimeControl "180+1"]
[EndTime "11:31:23 PDT"]
[Termination "CalinGheorghiu won by resignation"]

1. d4 {[%clk 0:02:58.2]} 1... d5 {[%clk 0:02:58.4]} 2. c4 {[%clk 0:02:58.3]}
2... e6 {[%clk 0:02:57.4]} 3. Nc3 {[%clk 0:02:57.7]} 3... a6 {[%clk 0:02:56.2]}
4. Nf3 {[%clk 0:02:41.1]} 4... dxc4 {[%clk 0:02:54.5]} 5. e4 {[%clk 0:02:40.4]}
5... b5 {[%clk 0:02:53.2]} 6. a4 {[%clk 0:02:31.8]} 6... b4 {[%clk 0:02:52.2]}
7. Ne2 {[%clk 0:02:31.3]} 7... Nf6 {[%clk 0:02:48.2]} 8. Ng3 {[%clk 0:02:31.7]}
8... Bb7 {[%clk 0:02:44.6]} 9. e5 {[%clk 0:02:30.7]} 9... Nd5 {[%clk 0:02:44.1]}
10. Bxc4 {[%clk 0:02:30.6]} 10... c5 {[%clk 0:02:42.5]} 11. O-O {[%clk
0:02:27.7]} 11... Nd7 {[%clk 0:02:41.8]} 12. Re1 {[%clk 0:02:22.1]} 12... Be7
{[%clk 0:02:40]} 13. Ne4 {[%clk 0:02:10.8]} 13... O-O {[%clk 0:02:37.8]} 14. Bg5
{[%clk 0:02:07.9]} 14... h6 {[%clk 0:02:31.4]} 15. Bxe7 {[%clk 0:02:05.1]} 15...
Qxe7 {[%clk 0:02:15.3]} 16. Nd6 {[%clk 0:01:56.7]} 1-0

[Event "*** Titled Tuesday Blitz"]
[Site "Chess.com"]
[Date "2020.05.05"]
[Round "8"]
[White "Larina_Marija"]
[Black "Shushik"]
[Result "0-1"]
[WhiteElo "2131"]
[BlackElo "2046"]
[TimeControl "180+1"]
[EndTime "11:31:32 PDT"]
[Termination "Shushik won by checkmate"]

1. e4 {[%clk 0:03:00]} 1... e5 {[%clk 0:02:58.7]} 2. Nf3 {[%clk 0:02:59.7]} 2...
Nc6 {[%clk 0:02:58.9]} 3. Nc3 {[%clk 0:02:59.6]} 3... g6 {[%clk 0:02:58.6]} 4.
d4 {[%clk 0:02:55.5]} 4... exd4 {[%clk 0:02:56.3]} 5. Nd5 {[%clk 0:02:55]} 5...
Bg7 {[%clk 0:02:55.2]} 6. Bg5 {[%clk 0:02:53.7]} 6... Nce7 {[%clk 0:02:53.8]} 7.
Nxd4 {[%clk 0:02:47.5]} 7... c6 {[%clk 0:02:42.7]} 8. Nxe7 {[%clk 0:02:45.4]}
8... Nxe7 {[%clk 0:02:41.8]} 9. Qd2 {[%clk 0:02:31]} 9... O-O {[%clk 0:02:36.7]}
10. O-O-O {[%clk 0:02:28.4]} 10... Re8 {[%clk 0:02:26.2]} 11. Bh6 {[%clk
0:02:27.2]} 11... Bh8 {[%clk 0:02:15.3]} 12. h4 {[%clk 0:02:16.7]} 12... d5
{[%clk 0:02:08.7]} 13. exd5 {[%clk 0:02:15.9]} 13... Qxd5 {[%clk 0:02:07.6]} 14.
Kb1 {[%clk 0:01:53.8]} 14... Qxd4 {[%clk 0:02:01.9]} 15. Qxd4 {[%clk 0:01:50.3]}
15... Bxd4 {[%clk 0:02:01.8]} 16. Rxd4 {[%clk 0:01:50.7]} 16... Nf5 {[%clk
0:02:01.8]} 17. Be3 {[%clk 0:01:42.8]} 17... Nxd4 {[%clk 0:02:00.7]} 18. Bxd4
{[%clk 0:01:42.6]} 18... Re1# {[%clk 0:02:00.1]} 0-1

[Event "*** Titled Tuesday Blitz"]
[Site "Chess.com"]
[Date "2020.05.05"]
[Round "8"]
[White "SARGISMV"]
[Black "Tsyhanchuk_Stanislav"]
[Result "0-1"]
[WhiteElo "2449"]
[BlackElo "2588"]
[TimeControl "180+1"]
[EndTime "11:32:34 PDT"]
[Termination "Tsyhanchuk_Stanislav won by resignation"]

1. d4 {[%clk 0:02:55.3]} 1... Nf6 {[%clk 0:02:59.1]} 2. Nf3 {[%clk 0:02:54.9]}
2... d5 {[%clk 0:02:57.9]} 3. c4 {[%clk 0:02:55.1]} 3... c6 {[%clk 0:02:57.4]}
4. e3 {[%clk 0:02:55]} 4... g6 {[%clk 0:02:55.5]} 5. Nc3 {[%clk 0:02:52.9]} 5...
Bg7 {[%clk 0:02:54.5]} 6. Be2 {[%clk 0:02:53.1]} 6... O-O {[%clk 0:02:53.9]} 7.
O-O {[%clk 0:02:52.9]} 7... dxc4 {[%clk 0:02:47.3]} 8. Bxc4 {[%clk 0:02:52.4]}
8... Bf5 {[%clk 0:02:43]} 9. Ne5 {[%clk 0:02:48.8]} 9... Nbd7 {[%clk 0:02:41.8]}
10. Qb3 {[%clk 0:02:46.8]} 10... e6 {[%clk 0:01:54]} 11. Qxb7 {[%clk 0:02:38.3]}
11... Nxe5 {[%clk 0:01:52.3]} 12. dxe5 {[%clk 0:02:38.5]} 12... Ng4 {[%clk
0:01:53]} 13. f4 {[%clk 0:02:21.7]} 13... Qh4 {[%clk 0:01:32.3]} 14. h3 {[%clk
0:02:19.9]} 14... Nxe5 {[%clk 0:01:32.4]} 15. Be2 {[%clk 0:01:55.1]} 15... Nd3
{[%clk 0:01:23.2]} 16. e4 {[%clk 0:01:39.7]} 16... Bxh3 {[%clk 0:01:21.6]} 17.
gxh3 {[%clk 0:01:17.1]} 17... Qg3+ {[%clk 0:01:18.7]} 18. Kh1 {[%clk 0:01:17]}
18... Qxh3+ {[%clk 0:01:19.6]} 19. Kg1 {[%clk 0:01:17.6]} 19... Bd4+ {[%clk
0:01:19.6]} 0-1

[Event "*** Titled Tuesday Blitz"]
[Site "Chess.com"]
[Date "2020.05.05"]
[Round "8"]
[White "politeplayer"]
[Black "ChessQueen"]
[Result "0-1"]
[WhiteElo "2236"]
[BlackElo "2667"]
[TimeControl "180+1"]
[EndTime "11:32:37 PDT"]
[Termination "ChessQueen won by resignation"]

1. e4 {[%clk 0:03:00.9]} 1... c6 {[%clk 0:02:59.4]} 2. d4 {[%clk 0:02:59.3]}
2... d5 {[%clk 0:02:59.4]} 3. exd5 {[%clk 0:02:59.4]} 3... cxd5 {[%clk
0:02:59.5]} 4. c4 {[%clk 0:03:00]} 4... Nf6 {[%clk 0:02:59.4]} 5. Nc3 {[%clk
0:03:00.3]} 5... Nc6 {[%clk 0:02:59.1]} 6. Nf3 {[%clk 0:02:59.2]} 6... a6 {[%clk
0:02:59.4]} 7. cxd5 {[%clk 0:02:57.4]} 7... Nxd5 {[%clk 0:02:58.5]} 8. Bc4
{[%clk 0:02:57.9]} 8... Be6 {[%clk 0:02:42]} 9. Nxd5 {[%clk 0:02:36.2]} 9...
Bxd5 {[%clk 0:02:41.6]} 10. Bxd5 {[%clk 0:02:34.7]} 10... Qxd5 {[%clk
0:02:41.2]} 11. O-O {[%clk 0:02:35.2]} 11... e6 {[%clk 0:02:39.8]} 12. Re1
{[%clk 0:02:33]} 12... Be7 {[%clk 0:02:31]} 13. Qb3 {[%clk 0:02:18.8]} 13...
Qxb3 {[%clk 0:02:27.9]} 14. axb3 {[%clk 0:02:18.2]} 14... Rd8 {[%clk 0:02:21]}
15. Be3 {[%clk 0:02:14.3]} 15... Rd5 {[%clk 0:02:19.9]} 16. Rac1 {[%clk
0:02:04.1]} 16... O-O {[%clk 0:02:04.4]} 17. Ne5 {[%clk 0:01:58.3]} 17... Nxd4
{[%clk 0:01:53]} 18. Bxd4 {[%clk 0:01:54]} 18... Rxd4 {[%clk 0:01:53.3]} 19.
Red1 {[%clk 0:01:38.3]} 19... Rxd1+ {[%clk 0:01:34.9]} 20. Rxd1 {[%clk
0:01:37.4]} 20... Rd8 {[%clk 0:01:35.5]} 21. Rxd8+ {[%clk 0:01:28.1]} 21... Bxd8
{[%clk 0:01:35.5]} 22. Nd7 {[%clk 0:01:28.7]} 22... Be7 {[%clk 0:01:26.5]} 23.
f3 {[%clk 0:01:24.2]} 23... f6 {[%clk 0:01:25.1]} 24. Nb6 {[%clk 0:01:21]} 24...
Bc5+ {[%clk 0:01:24.6]} 0-1

[Event "*** Titled Tuesday Blitz"]
[Site "Chess.com"]
[Date "2020.05.05"]
[Round "8"]
[White "Harut-1998"]
[Black "RaunakSadhwani2005"]
[Result "1-0"]
[WhiteElo "2754"]
[BlackElo "2859"]
[TimeControl "180+1"]
[EndTime "11:32:41 PDT"]
[Termination "Harut-1998 won by resignation"]

1. d4 {[%clk 0:03:00.9]} 1... Nf6 {[%clk 0:03:00.4]} 2. Nf3 {[%clk 0:02:59.9]}
2... g6 {[%clk 0:02:59]} 3. Nbd2 {[%clk 0:02:58.1]} 3... Bg7 {[%clk 0:02:56.9]}
4. e4 {[%clk 0:02:57.9]} 4... d6 {[%clk 0:02:57.5]} 5. Bb5+ {[%clk 0:02:56.7]}
5... c6 {[%clk 0:02:52.8]} 6. Bd3 {[%clk 0:02:56.8]} 6... O-O {[%clk 0:02:53.2]}
7. O-O {[%clk 0:02:55.2]} 7... Bg4 {[%clk 0:02:45.2]} 8. h3 {[%clk 0:02:51.2]}
8... Bxf3 {[%clk 0:02:45.7]} 9. Nxf3 {[%clk 0:02:52.1]} 9... Nbd7 {[%clk
0:02:46.2]} 10. c3 {[%clk 0:02:49.3]} 10... e5 {[%clk 0:02:45.5]} 11. Re1 {[%clk
0:02:48.4]} 11... Re8 {[%clk 0:02:45.1]} 12. dxe5 {[%clk 0:02:39.6]} 12... dxe5
{[%clk 0:02:46]} 13. Be3 {[%clk 0:02:37.6]} 13... a5 {[%clk 0:02:42.4]} 14. Qb3
{[%clk 0:02:33.7]} 14... b5 {[%clk 0:02:24.8]} 15. Ng5 {[%clk 0:02:29.5]} 15...
Re7 {[%clk 0:02:15]} 16. a4 {[%clk 0:02:25.3]} 16... h6 {[%clk 0:02:11.6]} 17.
Nf3 {[%clk 0:02:22.7]} 17... Rb8 {[%clk 0:01:55.7]} 18. axb5 {[%clk 0:02:18.3]}
18... cxb5 {[%clk 0:01:56.6]} 19. Qa3 {[%clk 0:02:18.8]} 19... Nf8 {[%clk
0:01:33.5]} 20. Red1 {[%clk 0:02:15.9]} 20... Rd7 {[%clk 0:01:09.1]} 21. Nxe5
{[%clk 0:02:11.2]} 21... Rd6 {[%clk 0:01:09.2]} 22. Bc5 {[%clk 0:02:02.8]} 22...
Re6 {[%clk 0:00:59.1]} 23. Bc4 {[%clk 0:02:01.5]} 23... Rxe5 {[%clk 0:00:52.4]}
24. Rxd8 {[%clk 0:01:58.5]} 24... Rxd8 {[%clk 0:00:53.3]} 25. Bd4 {[%clk
0:01:58]} 25... Rxe4 {[%clk 0:00:50.8]} 26. Bxb5 {[%clk 0:01:55.9]} 1-0

[Event "*** Titled Tuesday Blitz"]
[Site "Chess.com"]
[Date "2020.05.05"]
[Round "8"]
[White "lupta_robin"]
[Black "GuerrieroFromLevant"]
[Result "1-0"]
[WhiteElo "2512"]
[BlackElo "2373"]
[TimeControl "180+1"]
[EndTime "11:33:07 PDT"]
[Termination "lupta_robin won by resignation"]

1. e4 {[%clk 0:03:00.9]} 1... e6 {[%clk 0:02:56]} 2. d4 {[%clk 0:02:57.6]} 2...
d5 {[%clk 0:02:56.4]} 3. Nc3 {[%clk 0:02:56.7]} 3... Nf6 {[%clk 0:02:56.2]} 4.
e5 {[%clk 0:02:56.6]} 4... Nfd7 {[%clk 0:02:56.4]} 5. f4 {[%clk 0:02:56.8]} 5...
c5 {[%clk 0:02:57]} 6. Nf3 {[%clk 0:02:57.4]} 6... Nc6 {[%clk 0:02:57.7]} 7. Be3
{[%clk 0:02:56.8]} 7... a6 {[%clk 0:02:58.4]} 8. Qd2 {[%clk 0:02:56.1]} 8... b5
{[%clk 0:02:59]} 9. dxc5 {[%clk 0:02:55.5]} 9... Bxc5 {[%clk 0:02:59.9]} 10. Bf2
{[%clk 0:02:51.9]} 10... Qb6 {[%clk 0:02:58.4]} 11. Bd3 {[%clk 0:02:51.8]} 11...
h6 {[%clk 0:02:54.3]} 12. O-O {[%clk 0:02:45.3]} 12... O-O {[%clk 0:02:53.6]}
13. a3 {[%clk 0:02:43]} 13... Bxf2+ {[%clk 0:02:50.1]} 14. Qxf2 {[%clk
0:02:42.2]} 14... Qxf2+ {[%clk 0:02:50.2]} 15. Kxf2 {[%clk 0:02:41.4]} 15... b4
{[%clk 0:02:51.1]} 16. Na4 {[%clk 0:02:38.2]} 16... Rb8 {[%clk 0:02:47.5]} 17.
Ke3 {[%clk 0:02:36.5]} 17... a5 {[%clk 0:02:47]} 18. axb4 {[%clk 0:02:29.8]}
18... axb4 {[%clk 0:02:46.7]} 19. b3 {[%clk 0:02:24.1]} 19... f6 {[%clk
0:02:43.5]} 20. Nd4 {[%clk 0:02:18.9]} 20... Nxd4 {[%clk 0:02:40.8]} 21. Kxd4
{[%clk 0:02:18.9]} 21... Bb7 {[%clk 0:02:32.4]} 22. g3 {[%clk 0:02:08.3]} 22...
Bc6 {[%clk 0:02:29]} 23. Nc5 {[%clk 0:02:03.7]} 23... Nxc5 {[%clk 0:02:25.4]}
24. Kxc5 {[%clk 0:02:04]} 24... Bd7 {[%clk 0:02:24.8]} 25. Ra7 {[%clk
0:01:58.4]} 25... Rfc8+ {[%clk 0:02:18.4]} 26. Kd4 {[%clk 0:01:54.2]} 26... Bb5
{[%clk 0:02:14.1]} 27. exf6 {[%clk 0:01:54.1]} 27... gxf6 {[%clk 0:02:13.6]} 28.
Re1 {[%clk 0:01:52.3]} 28... Bxd3 {[%clk 0:02:12.7]} 29. cxd3 {[%clk 0:01:52.1]}
29... Rb6 {[%clk 0:02:09.6]} 30. Re7 {[%clk 0:01:48.2]} 30... Rcc6 {[%clk
0:02:07.9]} 31. Ra1 {[%clk 0:01:47.1]} 31... Kf8 {[%clk 0:02:04.5]} 32. Rh7
{[%clk 0:01:44.5]} 32... Kg8 {[%clk 0:01:54.6]} 33. Raa7 {[%clk 0:01:39.5]}
33... Ra6 {[%clk 0:01:52.9]} 34. Rab7 {[%clk 0:01:31.5]} 34... Rab6 {[%clk
0:01:51.3]} 35. Rbd7 {[%clk 0:01:20.6]} 35... Rd6 {[%clk 0:01:45.4]} 36. Rhg7+
{[%clk 0:01:17.5]} 36... Kh8 {[%clk 0:01:41.4]} 37. Rh7+ {[%clk 0:01:17.7]}
37... Kg8 {[%clk 0:01:41]} 38. Rdg7+ {[%clk 0:01:17.9]} 38... Kf8 {[%clk
0:01:40.3]} 39. Ra7 {[%clk 0:01:16.7]} 39... Kg8 {[%clk 0:01:38.2]} 40. Rhc7
{[%clk 0:01:17.1]} 40... Rdc6 {[%clk 0:01:36.5]} 41. Ra8+ {[%clk 0:01:16.7]} 1-0

[Event "*** Titled Tuesday Blitz"]
[Site "Chess.com"]
[Date "2020.05.05"]
[Round "8"]
[White "monalize"]
[Black "Stronger1799"]
[Result "0-1"]
[WhiteElo "2347"]
[BlackElo "2261"]
[TimeControl "180+1"]
[EndTime "11:33:17 PDT"]
[Termination "Stronger1799 won by resignation"]

1. e4 {[%clk 0:03:00.9]} 1... c5 {[%clk 0:02:58.1]} 2. Nf3 {[%clk 0:02:59.4]}
2... e6 {[%clk 0:02:58.5]} 3. d4 {[%clk 0:02:58.4]} 3... cxd4 {[%clk 0:02:59.4]}
4. Nxd4 {[%clk 0:02:58.5]} 4... Nf6 {[%clk 0:02:59.9]} 5. Nc3 {[%clk 0:02:57.8]}
5... d6 {[%clk 0:03:00.3]} 6. g4 {[%clk 0:02:56.6]} 6... h6 {[%clk 0:02:59.9]}
7. g5 {[%clk 0:02:54.8]} 7... hxg5 {[%clk 0:02:58.9]} 8. Bxg5 {[%clk 0:02:55.1]}
8... Be7 {[%clk 0:02:58.7]} 9. Qf3 {[%clk 0:02:54.3]} 9... Nc6 {[%clk
0:02:57.7]} 10. Nxc6 {[%clk 0:02:52.8]} 10... bxc6 {[%clk 0:02:58.6]} 11. O-O-O
{[%clk 0:02:51.6]} 11... e5 {[%clk 0:02:58.9]} 12. Be2 {[%clk 0:02:40.5]} 12...
Be6 {[%clk 0:02:40.8]} 13. h4 {[%clk 0:02:39.1]} 13... Rb8 {[%clk 0:02:35.8]}
14. b3 {[%clk 0:02:33.9]} 14... Qa5 {[%clk 0:02:31.7]} 15. Kb1 {[%clk
0:02:28.3]} 15... d5 {[%clk 0:02:24.7]} 16. Bd2 {[%clk 0:02:08.8]} 16... Bb4
{[%clk 0:02:06.9]} 17. exd5 {[%clk 0:01:49.6]} 17... cxd5 {[%clk 0:02:04.7]} 18.
Qg3 {[%clk 0:01:49.4]} 18... d4 {[%clk 0:01:57.8]} 19. Qxg7 {[%clk 0:01:40.5]}
19... Ke7 {[%clk 0:01:57.4]} 20. Bg5 {[%clk 0:01:38]} 20... Bxc3 {[%clk
0:01:43.2]} 21. Qxf6+ {[%clk 0:01:36.6]} 21... Kd7 {[%clk 0:01:35.6]} 22. Rd3
{[%clk 0:01:18.7]} 22... Rhe8 {[%clk 0:01:17.9]} 23. Rg1 {[%clk 0:01:14.8]}
23... Rb6 {[%clk 0:01:04.8]} 24. Bg4 {[%clk 0:01:08.7]} 24... Qxa2+ {[%clk
0:01:03.9]} 0-1

[Event "*** Titled Tuesday Blitz"]
[Site "Chess.com"]
[Date "2020.05.05"]
[Round "8"]
[White "Gordima"]
[Black "Reader777"]
[Result "1-0"]
[WhiteElo "2785"]
[BlackElo "2590"]
[TimeControl "180+1"]
[EndTime "11:33:18 PDT"]
[Termination "Gordima won by checkmate"]

1. d4 {[%clk 0:02:57.2]} 1... Nf6 {[%clk 0:02:58.9]} 2. c4 {[%clk 0:02:57.3]}
2... e6 {[%clk 0:02:59.2]} 3. Nc3 {[%clk 0:02:57.6]} 3... Bb4 {[%clk 0:02:58.9]}
4. Qc2 {[%clk 0:02:54.7]} 4... O-O {[%clk 0:02:57.7]} 5. Nf3 {[%clk 0:02:54.2]}
5... d6 {[%clk 0:02:54.7]} 6. Bd2 {[%clk 0:02:53.5]} 6... Nbd7 {[%clk
0:02:52.9]} 7. a3 {[%clk 0:02:53.2]} 7... Bxc3 {[%clk 0:02:52.5]} 8. Bxc3 {[%clk
0:02:54.1]} 8... b6 {[%clk 0:02:52.9]} 9. e4 {[%clk 0:02:50]} 9... Bb7 {[%clk
0:02:52.1]} 10. Bd3 {[%clk 0:02:49.4]} 10... e5 {[%clk 0:02:19.8]} 11. dxe5
{[%clk 0:02:50.3]} 11... dxe5 {[%clk 0:02:19.5]} 12. Nxe5 {[%clk 0:02:41]} 12...
Re8 {[%clk 0:01:50.9]} 13. Nxd7 {[%clk 0:02:21.2]} 13... Nxe4 {[%clk 0:01:50.1]}
14. O-O-O {[%clk 0:02:21.3]} 14... Qg5+ {[%clk 0:01:19.7]} 15. Kb1 {[%clk
0:02:17.4]} 15... Rad8 {[%clk 0:01:18.3]} 16. Rde1 {[%clk 0:01:26.4]} 16... Qf4
{[%clk 0:00:44.5]} 17. f3 {[%clk 0:01:15.5]} 17... Nxc3+ {[%clk 0:00:36.2]} 18.
Qxc3 {[%clk 0:01:16.4]} 18... Rxd7 {[%clk 0:00:33.5]} 19. Rxe8# {[%clk
0:01:14.6]} 1-0

[Event "*** Titled Tuesday Blitz"]
[Site "Chess.com"]
[Date "2020.05.05"]
[Round "8"]
[White "Angel_Hranitel_37"]
[Black "Juanovic"]
[Result "1-0"]
[WhiteElo "2378"]
[BlackElo "2187"]
[TimeControl "180+1"]
[EndTime "11:33:21 PDT"]
[Termination "Angel_Hranitel_37 won by resignation"]

1. d4 {[%clk 0:03:00.9]} 1... d5 {[%clk 0:02:59.4]} 2. c4 {[%clk 0:03:00.2]}
2... c6 {[%clk 0:02:59.9]} 3. cxd5 {[%clk 0:03:00.8]} 3... cxd5 {[%clk
0:02:59.9]} 4. Bg5 {[%clk 0:03:01.5]} 4... Nc6 {[%clk 0:02:57]} 5. Nc3 {[%clk
0:03:01.9]} 5... Nf6 {[%clk 0:02:54.5]} 6. Bxf6 {[%clk 0:03:00.9]} 6... gxf6
{[%clk 0:02:54.4]} 7. e3 {[%clk 0:03:01.6]} 7... Bg7 {[%clk 0:02:44.3]} 8. g3
{[%clk 0:02:57.5]} 8... h5 {[%clk 0:02:42.7]} 9. h4 {[%clk 0:02:56.1]} 9... Bf5
{[%clk 0:02:41.3]} 10. Bg2 {[%clk 0:02:55.4]} 10... e6 {[%clk 0:02:41.1]} 11.
Nge2 {[%clk 0:02:54.3]} 11... Qb6 {[%clk 0:02:40.9]} 12. Qb3 {[%clk 0:02:19.9]}
12... Qxb3 {[%clk 0:02:40.5]} 13. axb3 {[%clk 0:02:20.8]} 13... Nb4 {[%clk
0:02:30.7]} 14. O-O {[%clk 0:02:19.7]} 14... O-O {[%clk 0:02:28.6]} 15. Nf4
{[%clk 0:02:16.3]} 15... Bc2 {[%clk 0:02:25.3]} 16. Ra3 {[%clk 0:01:37.3]} 16...
Nd3 {[%clk 0:02:11.9]} 17. Nxh5 {[%clk 0:01:36.4]} 17... Rfc8 {[%clk 0:02:06.7]}
18. Nxg7 {[%clk 0:01:09.6]} 18... Kxg7 {[%clk 0:02:06.4]} 19. Na4 {[%clk
0:00:46.3]} 19... b5 {[%clk 0:01:58.2]} 20. Nc5 {[%clk 0:00:44.6]} 20... Nxb2
{[%clk 0:01:26.2]} 21. Ra2 {[%clk 0:00:39.4]} 21... Rxc5 {[%clk 0:01:17.9]} 22.
dxc5 {[%clk 0:00:38.9]} 22... Bd3 {[%clk 0:01:18.1]} 23. Rxb2 {[%clk 0:00:38.8]}
23... Bxf1 {[%clk 0:01:18.2]} 24. Bxf1 {[%clk 0:00:39.7]} 24... a5 {[%clk
0:01:17.8]} 1-0